fUSD/lending_fUSD_20240628
["ID","MTS","AMOUNT","RATE_DAILY","PERIOD"]
[330523470,1719558693338,-526.55,0.00019452,2]
[330523471,1719558693348,-9688.19,0.00019452,2]
[330523472,1719558693358,-500.0,0.00019452,2]
[330523473,1719558693367,-840.68,0.00019452,2]
[330523474,1719558693378,-1247.68,0.00019452,2]
[330523475,1719558693388,-3043.55,0.00019452,2]
[330523476,1719558693397,-500.0,0.00019452,2]
[330523477,1719558693409,-500.0,0.00019452,2]
[330523478,1719558693420,-761.47,0.00019452,2]
[330523479,1719558693430,-500.0,0.00019452,2]
[330523480,1719558693440,-886.38,0.00019452,2]
[330523481,1719558693451,-500.0,0.00019452,2]
[330523482,1719558693462,-500.0,0.00019452,2]
[330523483,1719558693473,-500.0,0.00019452,2]
[330523484,1719558693483,-500.0,0.00019452,2]
[330523485,1719558693493,-500.0,0.00019452,2]
[330523486,1719558693798,-344.96908203,0.00019452,2]
[330523487,1719558693809,-500.0,0.00019452,2]
[330523488,1719558693819,-582.31,0.00019452,2]
[330523489,1719558693828,-3675.64,0.00019452,2]
[330523490,1719558693837,-500.0,0.00019452,2]
[330523491,1719558693846,-500.0,0.00019452,2]
[330523492,1719558693856,-8732.17,0.00019452,2]
[330523493,1719558693866,-500.0,0.00019452,2]
[330523494,1719558693876,-520.285749,0.00019452,2]
[330523495,1719558693886,-500.0,0.00019452,2]
[330523496,1719558693895,-1059.73,0.00019452,2]
[330523497,1719558693905,-520.285749,0.00019452,2]
[330523498,1719558693914,-5982.08,0.00019452,2]
[330523499,1719558693924,-520.285749,0.00019452,2]
[330523500,1719558693933,-500.0,0.00019452,2]
[330523501,1719558693943,-28717.77,0.00019452,2]
[330523502,1719558693953,-500.0,0.00019452,2]
[330523503,1719558693962,-500.0,0.00019452,2]
[330523504,1719558693973,-3165.32,0.00019452,2]
[330523505,1719558693983,-1356.22,0.00019452,2]
[330523506,1719558693993,-1581.02,0.00019452,2]
[330523507,1719558694002,-7069.38,0.00019452,2]
[330523508,1719558694012,-3225.76,0.00019452,2]
[330523509,1719558694022,-1221.84,0.00019452,2]
[330523510,1719558694032,-1492.29,0.00019452,2]
[330523511,1719558694042,-664.71,0.00019452,2]
[330523512,1719558694051,-500.0,0.00019452,2]
[330523513,1719558694060,-520.285749,0.00019452,2]
[330523514,1719558694070,-520.285749,0.00019452,2]
[330523515,1719558694082,-1858.57,0.00019452,2]
[330523516,1719558694094,-520.285743,0.00019452,2]
[330523517,1719558694103,-783.9,0.00019452,2]
[330523518,1719558694113,-500.0,0.00019452,2]
[330523519,1719558694123,-511.36,0.00019452,2]
[330523520,1719558694133,-52856.9061548,0.00019452,2]
[330523521,1719558694143,-668.7,0.00019452,2]
[330523522,1719558694153,-15314.84,0.00019452,2]
[330523523,1719558694163,-4518.02,0.00019452,2]
[330523524,1719558694174,-1406.94,0.00019452,2]
[330523525,1719558694184,-3761.95,0.00019452,2]
[330523526,1719558694193,-500.0,0.00019452,2]
[330523527,1719558694203,-509.81,0.00019452,2]
[330523528,1719558694212,-1698.8,0.00019452,2]
[330523529,1719558694221,-500.0,0.00019452,2]
[330523530,1719558694231,-482.93533667,0.00019452,2]
[330523531,1719558694241,-500.0,0.00019452,2]
[330523532,1719558694250,-806.26,0.00019452,2]
[330523533,1719558694260,-500.0,0.00019452,2]
[330523534,1719558694269,-19701.35,0.00019452,2]
[330523535,1719558694279,-18198.63,0.00019452,2]
[330523536,1719558694288,-515.09931337,0.00019452,26]
[330523537,1719558694298,-6822.38,0.00019452,2]
[330523538,1719558694307,-6118.98,0.00019452,2]
[330523539,1719558694317,-19034.38,0.00019452,2]
[330523540,1719558694326,-43374.57,0.00019452,2]
[330523541,1719558694335,-12046.15,0.00019452,2]
[330523542,1719558694345,-500.0,0.00019452,2]
[330523543,1719558694354,-901.99,0.00019452,2]
[330523544,1719558694364,-500.0,0.00019452,2]
[330523545,1719558694373,-500.0,0.00019452,2]
[330523546,1719558694384,-500.0,0.00019452,2]
[330523547,1719558694393,-1866.33,0.00019452,2]
[330523548,1719558694402,-500.0,0.00019452,2]
[330523549,1719558694412,-500.0,0.00019452,2]
[330523550,1719558694421,-1979.03,0.00019452,2]
[330523551,1719558694431,-1122.13,0.00019452,2]
[330523552,1719558694441,-499.34661992,0.00019452,2]
[330523553,1719558694450,-2880.3,0.00019452,2]
[330523554,1719558694460,-2957.08,0.00019452,2]
[330523555,1719558694469,-967.6,0.00019452,2]
[330523556,1719558694478,-1996.34,0.00019452,2]
[330523557,1719558694488,-13219.7,0.00019452,2]
[330523558,1719558694497,-500.0,0.00019452,2]
[330523559,1719558694507,-1470.43,0.00019452,2]
[330523560,1719558694516,-543.7595533,0.00019452,2]
[330523561,1719558694525,-500.0,0.00019452,2]
[330523562,1719558694534,-930.62,0.00019452,2]
[330523563,1719558694544,-837.01,0.00019452,2]
[330523564,1719558694553,-500.0,0.00019452,2]
[330523565,1719558694563,-725.41,0.00019452,2]
[330523566,1719558694572,-1036.95,0.00019452,2]
[330523567,1719558694581,-2438.96,0.00019452,2]
[330523568,1719558694590,-202.33505966,0.00019452,2]
[330523569,1719558694600,-11131.72,0.00019452,2]
[330523570,1719558694609,-508.31,0.00019452,2]
[330523571,1719558694618,-8501.39,0.00019452,2]
[330523572,1719558694627,-500.0,0.00019452,2]
[330523573,1719558694637,-614.05,0.00019452,2]
[330523574,1719558694647,-4107.36,0.00019452,2]
[330523575,1719558694658,-500.0,0.00019452,2]
[330523576,1719558694667,-695.05,0.00019452,2]
[330523577,1719558694676,-500.0,0.00019452,2]
[330523578,1719558694684,-500.0,0.00019452,2]
[330523579,1719558694694,-1198.32,0.00019452,2]
[330523580,1719558694703,-3504.83,0.00019452,2]
[330523581,1719558694713,-1116.82,0.00019452,2]
[330523582,1719558694722,-7408.97,0.00019452,2]
[330523583,1719558694731,-3576.98,0.00019452,2]
[330523584,1719558694741,-500.0,0.00019452,2]
[330523585,1719558694750,-500.0,0.00019452,2]
[330523586,1719558694759,-3893.33,0.00019452,2]
[330523587,1719558694769,-500.0,0.00019452,2]
[330523588,1719558694778,-500.0,0.00019452,2]
[330523589,1719558694788,-500.0,0.00019452,2]
[330523590,1719558694798,-10459.3,0.00019452,2]
[330523591,1719558694808,-500.0,0.00019452,2]
[330523592,1719558694817,-500.0,0.00019452,2]
[330523593,1719558694827,-1129.7,0.00019452,2]
[330523594,1719558694837,-970.09,0.00019452,2]
[330523595,1719558694846,-2771.23,0.00019452,2]
[330523596,1719558694856,-2837.24,0.00019452,2]
[330523597,1719558694866,-500.0,0.00019452,2]
[330523598,1719558694876,-2314.53,0.00019452,2]
[330523599,1719558694886,-13906.26490331,0.00019476,2]
[330523600,1719558694895,-156.13682179,0.000195,2]
[330523601,1719558694905,-884.01855148,0.000195,2]
[330523602,1719558694914,-300.0,0.00019542,2]
[330523603,1719558694923,-500.0,0.00019565,2]
[330523604,1719558694933,-291.0,0.00019595,2]
[330523605,1719558694942,-4473.141,0.00019595,2]
[330523606,1719558694951,-1662.0,0.00019595,2]
[330523607,1719558694961,-1198.0,0.00019595,2]
[330523608,1719558694970,-38194.0,0.00019595,2]
[330523609,1719558694979,-5172.0,0.00019595,2]
[330523610,1719558694987,-1069.0,0.00019595,2]
[330523611,1719558694997,-5791.1094587,0.00019603,2]
[330523612,1719558695006,-175.84386721,0.00019626,2]
[330523613,1719558695017,-168.6,0.00019628,2]
[330523614,1719558695026,-300.0,0.00019723,2]
[330523615,1719558695035,-500.0,0.00019726,2]
[330523616,1719558695046,-500.0,0.00019726,2]
[330523617,1719558695056,-500.0,0.00019726,2]
[330523618,1719558695065,-500.0,0.00019726,2]
[330523619,1719558695075,-500.0,0.00019726,2]
[330523620,1719558695087,-500.0,0.00019726,2]
[330523621,1719558695097,-500.0,0.00019726,2]
[330523622,1719558695106,-500.0,0.00019726,2]
[330523623,1719558695116,-500.0,0.00019726,2]
[330523624,1719558695127,-500.0,0.00019726,2]
[330523625,1719558695136,-500.0,0.00019726,2]
[330523626,1719558695147,-500.0,0.00019726,2]
[330523627,1719558695156,-1000.0,0.00019726,2]
[330523628,1719558695168,-500.0,0.00019726,2]
[330523629,1719558695179,-500.0,0.00019726,2]
[330523630,1719558695188,-500.0,0.00019726,2]
[330523631,1719558695198,-500.0,0.00019726,2]
[330523632,1719558695208,-500.0,0.00019726,2]
[330523633,1719558695218,-636.81181999,0.00019726,2]
[330523634,1719558695227,-500.0,0.00019726,2]
[330523635,1719558695237,-500.0,0.00019726,2]
[330523636,1719558695249,-500.0,0.00019726,2]
[330523637,1719558695258,-500.0,0.00019726,2]
[330523638,1719558695269,-500.0,0.00019726,2]
[330523639,1719558695278,-500.0,0.00019726,2]
[330523640,1719558695289,-500.0,0.00019726,2]
[330523641,1719558695298,-500.0,0.00019726,2]
[330523642,1719558695307,-182.78,0.00019726,2]
[330523643,1719558695317,-500.0,0.00019726,2]
[330523644,1719558695326,-500.0,0.00019726,2]
[330523645,1719558695336,-500.0,0.00019726,2]
[330523646,1719558695345,-500.0,0.00019726,2]
[330523647,1719558695357,-500.0,0.00019726,2]
[330523648,1719558695367,-500.0,0.00019726,2]
[330523649,1719558695377,-559.59419054,0.00019726,2]
[330523650,1719558695388,-500.0,0.00019726,2]
[330523651,1719558695401,-500.0,0.00019726,2]
[330523652,1719558695410,-500.0,0.00019726,2]
[330523653,1719558695419,-500.0,0.00019726,2]
[330523654,1719558695429,-500.0,0.00019726,2]
[330523655,1719558695438,-500.0,0.00019726,2]
[330523656,1719558695447,-500.0,0.00019726,2]
[330523657,1719558695457,-500.0,0.00019726,2]
[330523658,1719558695466,-500.0,0.00019726,2]
[330523659,1719558695476,-500.0,0.00019726,2]
[330523660,1719558695486,-500.0,0.00019726,2]
[330523661,1719558695496,-500.0,0.00019726,2]
[330523662,1719558695506,-500.0,0.00019726,2]
[330523663,1719558695515,-500.0,0.00019726,2]
[330523664,1719558695524,-500.0,0.00019726,2]
[330523665,1719558695534,-500.0,0.00019726,2]
[330523666,1719558695543,-500.0,0.00019726,2]
[330523667,1719558695553,-500.0,0.00019726,2]
[330523668,1719558695562,-500.0,0.00019726,2]
[330523669,1719558695572,-500.0,0.00019726,2]
[330523670,1719558695583,-500.0,0.00019726,2]
[330523671,1719558695592,-500.0,0.00019726,2]
[330523672,1719558695601,-2000.0,0.00019726,2]
[330523673,1719558695610,-500.0,0.00019726,2]
[330523674,1719558695619,-500.0,0.00019726,2]
[330523675,1719558695629,-500.0,0.00019726,2]
[330523676,1719558695640,-500.0,0.00019726,2]
[330523677,1719558695650,-886.86,0.00019726,2]
[330523678,1719558695659,-500.0,0.00019726,2]
[330523679,1719558695669,-500.0,0.00019726,2]
[330523680,1719558695679,-500.0,0.00019726,2]
[330523681,1719558695688,-500.0,0.00019726,2]
[330523682,1719558695698,-1151.71,0.00019726,2]
[330523683,1719558695708,-500.0,0.00019726,2]
[330523684,1719558695718,-500.0,0.00019726,2]
[330523685,1719558695727,-500.0,0.00019726,2]
[330523686,1719558695738,-682.81,0.00019726,2]
[330523687,1719558695747,-500.0,0.00019726,2]
[330523688,1719558695756,-2974.6,0.00019726,2]
[330523689,1719558695765,-500.0,0.00019726,2]
[330523690,1719558695775,-500.0,0.00019726,2]
[330523691,1719558695788,-500.0,0.00019726,2]
[330523692,1719558695797,-520.33,0.00019726,2]
[330523693,1719558695807,-1852.46,0.00019726,2]
[330523694,1719558695816,-500.0,0.00019726,2]
[330523695,1719558695825,-429.15758604,0.00019726,2]
[330523696,1719558695836,-1092.66,0.00019726,2]
[330523697,1719558695846,-500.0,0.00019726,2]
[330523698,1719558695855,-500.0,0.00019726,2]
[330523699,1719558695866,-500.0,0.00019726,2]
[330523700,1719558695875,-500.0,0.00019726,2]
[330523701,1719558695885,-743.82,0.00019726,2]
[330523702,1719558695894,-500.0,0.00019726,2]
[330523703,1719558695903,-860.26,0.00019726,2]
[330523704,1719558695913,-500.0,0.00019726,2]
[330523705,1719558695922,-500.0,0.00019726,2]
[330523706,1719558695931,-608.72,0.00019726,2]
[330523707,1719558695941,-734.57,0.00019726,2]
[330523708,1719558695951,-888.31,0.00019726,2]
[330523709,1719558695960,-500.0,0.00019726,2]
[330523710,1719558695969,-560.78,0.00019726,2]
[330523711,1719558695978,-500.0,0.00019726,2]
[330523712,1719558695987,-500.0,0.00019726,2]
[330523713,1719558695997,-1659.7,0.00019726,2]
[330523714,1719558696006,-2806.65,0.00019726,2]
[330523715,1719558696015,-500.0,0.00019726,2]
[330523716,1719558696025,-500.0,0.00019726,2]
[330523717,1719558696034,-2305.03,0.00019726,2]
[330523718,1719558696044,-500.0,0.00019726,2]
[330523719,1719558696053,-500.0,0.00019726,2]
[330523720,1719558696166,-500.0,0.00019726,2]
[330523721,1719558696177,-1208.84,0.00019726,2]
[330523722,1719558696187,-1136.16,0.00019726,2]
[330523723,1719558696197,-500.0,0.00019726,2]
[330523724,1719558696206,-737.0,0.00019726,2]
[330523725,1719558696215,-500.0,0.00019726,2]
[330523726,1719558696225,-267.20880403,0.00019726,2]
[330523727,1719558696234,-500.0,0.00019726,2]
[330523728,1719558696243,-500.0,0.00019726,2]
[330523729,1719558696253,-2150.69,0.00019726,2]
[330523730,1719558696263,-500.0,0.00019726,2]
[330523731,1719558696272,-500.0,0.00019726,2]
[330523732,1719558696282,-500.0,0.00019726,2]
[330523733,1719558696291,-500.0,0.00019726,2]
[330523734,1719558696300,-500.0,0.00019726,2]
[330523735,1719558696309,-532.95,0.00019726,2]
[330523736,1719558696318,-1100.75,0.00019726,2]
[330523737,1719558696328,-2202.97,0.00019726,2]
[330523738,1719558696337,-928.31,0.00019726,2]
[330523739,1719558696346,-500.0,0.00019726,2]
[330523740,1719558696355,-528.55,0.00019726,2]
[330523741,1719558696364,-500.0,0.00019726,2]
[330523742,1719558696374,-717.58,0.00019726,2]
[330523743,1719558696385,-500.0,0.00019726,2]
[330523744,1719558696394,-500.0,0.00019726,2]
[330523745,1719558696403,-973.5,0.00019726,2]
[330523746,1719558696412,-1662.73,0.00019726,2]
[330523747,1719558696421,-500.0,0.00019726,2]
[330523748,1719558696430,-500.0,0.00019726,2]
[330523749,1719558696439,-500.0,0.00019726,2]
[330523750,1719558696449,-500.0,0.00019726,2]
[330523751,1719558696459,-500.0,0.00019726,2]
[330523752,1719558696468,-500.0,0.00019726,2]
[330523753,1719558696477,-500.0,0.00019726,2]
[330523754,1719558696486,-544.83,0.00019726,2]
[330523755,1719558696495,-1021.32,0.00019726,2]
[330523756,1719558696504,-803.25,0.00019726,2]
[330523757,1719558696513,-500.0,0.00019726,2]
[330523758,1719558696523,-500.0,0.00019726,2]
[330523759,1719558696532,-500.0,0.00019726,2]
[330523760,1719558696541,-500.0,0.00019726,2]
[330523761,1719558696551,-500.0,0.00019726,2]
[330523762,1719558696559,-500.0,0.00019726,2]
[330523763,1719558696568,-933.12,0.00019726,2]
[330523764,1719558696577,-1198.98,0.00019726,2]
[330523765,1719558696587,-500.0,0.00019726,2]
[330523766,1719558696596,-671.66,0.00019726,2]
[330523767,1719558696605,-1546.54,0.00019726,2]
[330523768,1719558696614,-500.0,0.00019726,2]
[330523769,1719558696623,-500.0,0.00019726,2]
[330523770,1719558696633,-500.0,0.00019726,2]
[330523771,1719558696641,-853.88,0.00019726,2]
[330523772,1719558696650,-1991.97,0.00019726,2]
[330523773,1719558696659,-500.0,0.00019726,2]
[330523774,1719558696668,-500.0,0.00019726,2]
[330523775,1719558696677,-500.0,0.00019726,2]
[330523776,1719558696687,-500.0,0.00019726,2]
[330523777,1719558696696,-500.0,0.00019726,2]
[330523778,1719558696705,-878.16,0.00019726,2]
[330523779,1719558696714,-500.0,0.00019726,2]
[330523780,1719558696724,-500.0,0.00019726,2]
[330523781,1719558696732,-1108.4,0.00019726,2]
[330523782,1719558696742,-1797.61,0.00019726,2]
[330523783,1719558696751,-830.15,0.00019726,2]
[330523784,1719558696760,-500.0,0.00019726,2]
[330523785,1719558696769,-1458.9,0.00019726,2]
[330523786,1719558696778,-500.0,0.00019726,2]
[330523787,1719558696788,-692.09,0.00019726,2]
[330523788,1719558696797,-500.0,0.00019726,2]
[330523789,1719558696807,-500.0,0.00019726,2]
[330523790,1719558696816,-857.9,0.00019726,2]
[330523791,1719558696825,-500.0,0.00019726,2]
[330523792,1719558696836,-565.29,0.00019726,2]
[330523793,1719558696845,-804.11,0.00019726,2]
[330523794,1719558696854,-500.0,0.00019726,2]
[330523795,1719558696864,-500.0,0.00019726,2]
[330523796,1719558696874,-971.38,0.00019726,2]
[330523797,1719558696884,-864.9,0.00019726,2]
[330523798,1719558696894,-500.0,0.00019726,2]
[330523799,1719558696904,-577.35,0.00019726,2]
[330523800,1719558696914,-500.0,0.00019726,2]
[330523801,1719558696924,-329.13206872,0.00019726,2]
[330523802,1719558696934,-1590.21,0.00019726,2]
[330523803,1719558696943,-500.0,0.00019726,2]
[330523804,1719558696952,-2934.36,0.00019726,2]
[330523805,1719558696962,-1486.58,0.00019726,2]
[330523806,1719558696973,-500.0,0.00019726,2]
[330523807,1719558696982,-894.6,0.00019726,2]
[330523808,1719558696991,-3334.49,0.00019726,2]
[330523809,1719558697000,-1364.86,0.00019726,2]
[330523810,1719558697009,-776.63,0.00019726,2]
[330523811,1719558697018,-500.0,0.00019726,2]
[330523812,1719558697027,-571.91580437,0.00019726,2]
[330523813,1719558697037,-495.064515,0.00019726,2]
[330523814,1719558697046,-818.59,0.00019726,2]
[330523815,1719558697055,-500.0,0.00019726,2]
[330523816,1719558697064,-500.0,0.00019726,2]
[330523817,1719558697074,-500.0,0.00019726,2]
[330523818,1719558697086,-500.0,0.00019726,2]
[330523819,1719558697096,-916.78,0.00019726,2]
[330523820,1719558697105,-500.0,0.00019726,2]
[330523821,1719558697115,-500.0,0.00019726,2]
[330523822,1719558697125,-500.0,0.00019726,2]
[330523823,1719558697136,-500.0,0.00019726,2]
[330523824,1719558697146,-500.0,0.00019726,2]
[330523825,1719558697156,-500.0,0.00019726,2]
[330523826,1719558697173,-500.0,0.00019726,2]
[330523827,1719558697183,-500.0,0.00019726,2]
[330523828,1719558697192,-258.2415086,0.00019726,2]
[330523829,1719558697201,-1606.4,0.00019726,2]
[330523830,1719558697211,-500.0,0.00019726,2]
[330523831,1719558697220,-500.0,0.00019726,2]
[330523832,1719558697229,-500.0,0.00019726,2]
[330523833,1719558697238,-500.0,0.00019726,2]
[330523834,1719558697246,-1523.71,0.00019726,2]
[330523835,1719558697256,-500.0,0.00019726,2]
[330523836,1719558697265,-500.0,0.00019726,2]
[330523837,1719558697274,-2289.07,0.00019726,2]
[330523838,1719558697283,-500.0,0.00019726,2]
[330523839,1719558697295,-500.0,0.00019726,2]
[330523840,1719558697304,-2134.84,0.00019726,2]
[330523841,1719558697313,-500.0,0.00019726,2]
[330523842,1719558697323,-540.94,0.00019726,2]
[330523843,1719558697332,-500.0,0.00019726,2]
[330523844,1719558697341,-500.0,0.00019726,2]
[330523845,1719558697351,-687.74,0.00019726,2]
[330523846,1719558697360,-1182.97,0.00019726,2]
[330523847,1719558697369,-2844.29,0.00019726,2]
[330523848,1719558697378,-1516.21,0.00019726,2]
[330523849,1719558697391,-500.0,0.00019726,2]
[330523850,1719558697400,-500.0,0.00019726,2]
[330523851,1719558697409,-8203.94,0.00019726,2]
[330523852,1719558697418,-614.20740153,0.00019726,2]
[330523853,1719558697427,-877.81,0.00019726,2]
[330523854,1719558697436,-687.83,0.00019726,2]
[330523855,1719558697445,-622.75,0.00019726,2]
[330523856,1719558697455,-500.0,0.00019726,2]
[330523857,1719558697464,-2943.91,0.00019726,2]
[330523858,1719558697474,-500.0,0.00019726,2]
[330523859,1719558697483,-500.0,0.00019726,2]
[330523860,1719558697492,-1079.86,0.00019726,2]
[330523861,1719558697501,-500.0,0.00019726,2]
[330523862,1719558697510,-500.0,0.00019726,2]
[330523863,1719558697519,-500.0,0.00019726,2]
[330523864,1719558697528,-670.57,0.00019726,2]
[330523865,1719558697537,-500.0,0.00019726,2]
[330523866,1719558697547,-500.0,0.00019726,2]
[330523867,1719558697555,-1243.35,0.00019726,2]
[330523868,1719558697564,-500.0,0.00019726,2]
[330523869,1719558697573,-678.82,0.00019726,2]
[330523870,1719558697582,-500.0,0.00019726,2]
[330523871,1719558697591,-972.29,0.00019726,2]
[330523872,1719558697600,-500.0,0.00019726,2]
[330523873,1719558697609,-10921.42,0.00019726,2]
[330523874,1719558697618,-500.0,0.00019726,2]
[330523875,1719558697627,-983.07,0.00019726,2]
[330523876,1719558697637,-1703.42,0.00019726,2]
[330523877,1719558697646,-1718.14,0.00019726,2]
[330523878,1719558697655,-500.0,0.00019726,2]
[330523879,1719558697664,-500.0,0.00019726,2]
[330523880,1719558697673,-3108.58,0.00019726,2]
[330523881,1719558697682,-606.59287801,0.00019726,2]
[330523882,1719558697691,-788.1,0.00019726,2]
[330523883,1719558697700,-1852.59,0.00019726,2]
[330523884,1719558697709,-500.0,0.00019726,2]
[330523885,1719558697718,-3216.82,0.00019726,2]
[330523886,1719558697727,-500.0,0.00019726,2]
[330523887,1719558697736,-1484.3,0.00019726,2]
[330523888,1719558697746,-500.0,0.00019726,2]
[330523889,1719558697755,-500.0,0.00019726,2]
[330523890,1719558697764,-500.0,0.00019726,2]
[330523891,1719558697773,-500.0,0.00019726,2]
[330523892,1719558697782,-500.0,0.00019726,2]
[330523893,1719558697791,-500.0,0.00019726,2]
[330523894,1719558697800,-500.0,0.00019726,2]
[330523895,1719558697809,-638.54,0.00019726,2]
[330523896,1719558697818,-557.47,0.00019726,2]
[330523897,1719558697827,-602.72,0.00019726,2]
[330523898,1719558697838,-766.29,0.00019726,2]
[330523899,1719558697847,-1832.43,0.00019726,2]
[330523900,1719558697856,-500.0,0.00019726,2]
[330523901,1719558697865,-3427.76,0.00019726,2]
[330523902,1719558697874,-5215.3,0.00019726,2]
[330523903,1719558697883,-790.32,0.00019726,2]
[330523904,1719558697892,-800.58,0.00019726,2]
[330523905,1719558697901,-1166.53,0.00019726,2]
[330523906,1719558697910,-500.0,0.00019726,2]
[330523907,1719558697919,-500.0,0.00019726,2]
[330523908,1719558697927,-500.0,0.00019726,2]
[330523909,1719558697936,-539.42,0.00019726,2]
[330523910,1719558697945,-1302.32,0.00019726,2]
[330523911,1719558697955,-3384.08,0.00019726,2]
[330523912,1719558697964,-500.0,0.00019726,2]
[330523913,1719558697973,-989.66,0.00019726,2]
[330523914,1719558697982,-1365.76,0.00019726,2]
[330523915,1719558697991,-2076.44,0.00019726,2]
[330523916,1719558698001,-500.0,0.00019726,2]
[330523917,1719558698010,-815.26,0.00019726,2]
[330523918,1719558698020,-500.0,0.00019726,2]
[330523919,1719558698029,-520.33,0.00019726,2]
[330523920,1719558698038,-1219.21,0.00019726,2]
[330523921,1719558698048,-1406.52,0.00019726,2]
[330523922,1719558698058,-3267.35,0.00019726,2]
[330523923,1719558698066,-500.0,0.00019726,2]
[330523924,1719558698075,-1558.11,0.00019726,2]
[330523925,1719558698089,-500.0,0.00019726,2]
[330523926,1719558698099,-500.0,0.00019726,2]
[330523927,1719558698108,-2141.73,0.00019726,2]
[330523928,1719558698118,-500.0,0.00019726,2]
[330523929,1719558698128,-500.0,0.00019726,2]
[330523930,1719558698142,-500.0,0.00019726,2]
[330523931,1719558698153,-1902.0,0.00019726,2]
[330523932,1719558698164,-500.0,0.00019726,2]
[330523933,1719558698173,-1907.18,0.00019726,2]
[330523934,1719558698183,-500.0,0.00019726,2]
[330523935,1719558698192,-1934.24,0.00019726,2]
[330523936,1719558698201,-1347.33,0.00019726,2]
[330523937,1719558698210,-1238.63,0.00019726,2]
[330523938,1719558698220,-1650.8,0.00019726,2]
[330523939,1719558698230,-911.26,0.00019726,2]
[330523940,1719558698239,-557.92871781,0.00019726,2]
[330523941,1719558698248,-500.0,0.00019726,2]
[330523942,1719558698258,-500.0,0.00019726,2]
[330523943,1719558698268,-804.56,0.00019726,2]
[330523944,1719558698277,-500.0,0.00019726,2]
[330523945,1719558698286,-593.54,0.00019726,2]
[330523946,1719558698295,-500.0,0.00019726,2]
[330523947,1719558698305,-1609.09,0.00019726,2]
[330523948,1719558698315,-2348.43,0.00019726,2]
[330523949,1719558698324,-500.0,0.00019726,2]
[330523950,1719558698334,-500.0,0.00019726,2]
[330523951,1719558698343,-1742.51,0.00019726,2]
[330523952,1719558698353,-500.0,0.00019726,2]
[330523953,1719558698363,-710.83,0.00019726,2]
[330523954,1719558698373,-1920.03,0.00019726,2]
[330523955,1719558698384,-1879.31,0.00019726,2]
[330523956,1719558698393,-500.0,0.00019726,2]
[330523957,1719558698403,-765.65,0.00019726,2]
[330523958,1719558698416,-500.0,0.00019726,2]
[330523959,1719558698426,-2975.68,0.00019726,2]
[330523960,1719558698435,-903.08,0.00019726,2]
[330523961,1719558698445,-500.0,0.00019726,2]
[330523962,1719558698455,-650.87,0.00019726,2]
[330523963,1719558698464,-500.0,0.00019726,2]
[330523964,1719558698474,-1810.96,0.00019726,2]
[330523965,1719558698484,-500.0,0.00019726,2]
[330523966,1719558698494,-500.0,0.00019726,2]
[330523967,1719558698504,-500.0,0.00019726,2]
[330523968,1719558698513,-208.18061539,0.00019726,2]
[330523969,1719558698525,-500.0,0.00019726,2]